fUST/lending_fUST_20240111
["ID","MTS","AMOUNT","RATE_DAILY","PERIOD"]
[311155755,1704940240454,-500.0,0.00028999,2]
[311155756,1704940240463,-500.0,0.00028999,2]
[311155757,1704940240472,-278.68601719,0.00028999,2]
[311155758,1704940240481,-500.0,0.00028999,2]
[311155759,1704940240490,-500.0,0.00028999,2]
[311155760,1704940240499,-500.0,0.00028999,2]
[311155761,1704940240508,-500.0,0.00028999,2]
[311155762,1704940240517,-500.0,0.00028999,2]
[311155763,1704940240526,-500.0,0.00028999,2]
[311155764,1704940240536,-420.54326704,0.00028999,2]
[311155765,1704940240545,-376.4753871,0.00028999,2]
[311155766,1704940240554,-500.0,0.00028999,2]
[311155767,1704940240563,-500.0,0.00028999,2]
[311155768,1704940240572,-500.0,0.00028999,2]
[311155769,1704940240581,-265.9956703,0.00028999,2]
[311155770,1704940240590,-462.72862987,0.00028999,2]
[311155771,1704940240599,-501.69879945,0.00028999,2]
[311155772,1704940240609,-406.39239134,0.00028999,2]
[311155773,1704940240618,-500.0,0.00028999,2]
[311155774,1704940240627,-443.32611715,0.00028999,2]
[311155775,1704940240636,-500.0,0.00028999,2]
[311155776,1704940240645,-500.0,0.00028999,2]
[311155777,1704940240654,-464.8899619,0.00028999,2]
[311155778,1704940240664,-500.0,0.00028999,2]
[311155779,1704940240673,-500.0,0.00028999,2]
[311155780,1704940240684,-300.0,0.00028999,2]
[311155781,1704940240695,-500.0,0.00028999,2]
[311155782,1704940240704,-500.0,0.00028999,2]
[311155783,1704940240713,-300.0,0.00028999,2]
[311155784,1704940240722,-297.42971793,0.00028999,2]
[311155785,1704940240733,-500.0,0.00028999,2]
[311155786,1704940240741,-473.38,0.00028999,2]
[311155787,1704940240750,-473.38,0.00028999,2]
[311155788,1704940240760,-473.38,0.00028999,2]
[311155789,1704940240769,-473.38,0.00028999,2]
[311155790,1704940240779,-473.38,0.00028999,2]
[311155791,1704940240788,-500.0,0.00028999,2]
[311155792,1704940240797,-217.24946958,0.00028999,2]
[311155793,1704940240806,-402.91145855,0.00028999,2]
[311155794,1704940240816,-500.0,0.00028999,2]
[311155796,1704940240825,-500.0,0.00028999,2]
[311155797,1704940240834,-389.50127857,0.00028999,2]
[311155798,1704940240843,-500.0,0.00028999,2]
[311155799,1704940240852,-154.98450155,0.00029,2]
[311155800,1704940240861,-501.00894022,0.00029,2]
[311155801,1704940240870,-546.87419273,0.00029,2]
[311155802,1704940240879,-155.00620025,0.00029,2]
[311155803,1704940240889,-3314.01740452,0.00029,2]
[311155804,1704940240898,-1822.05331204,0.00029,2]
[311155805,1704940240907,-300.0,0.00029,2]
[311155806,1704940240916,-200.0,0.00029,2]
[311155807,1704940240925,-2079.89647566,0.00029,2]
[311155809,1704940240934,-305.07101819,0.00029,2]
[311155811,1704940240944,-763.51274644,0.00029,2]
[311155812,1704940240953,-3807.00559693,0.00029,2]
[311155813,1704940240962,-309.82086831,0.00029,2]
[311155814,1704940240971,-155.01550155,0.00029,7]
[311155815,1704940240981,-157.18870053,0.00029,2]
[311155817,1704940240990,-156.43500893,0.00029,2]
[311155819,1704940240999,-283561.35337882,0.00029,7]
[311155820,1704940241008,-50000.0,0.00029,2]
[311155821,1704940241018,-29469.0,0.00029,2]
[311155822,1704940241028,-155.05361468,0.00029,2]
[311155823,1704940241037,-500.0,0.00029041,2]
[311155825,1704940241046,-620.00003193,0.00029106,2]
[311155826,1704940241055,-620.2548608,0.00029106,2]
[311155827,1704940241064,-500.0,0.00029178,2]
[311155828,1704940241073,-69912.42748864,0.00029207,3]
[311155829,1704940241082,-5000.0,0.00029207,5]
[311155830,1704940241091,-3920.62190316,0.00029207,2]
[311155831,1704940241100,-5000.0,0.00029207,5]
[311155832,1704940241109,-5000.0,0.00029207,5]
[311155833,1704940241118,-631.28742447,0.00029215,2]
[311155834,1704940241127,-5000.0,0.00029215,5]
[311155835,1704940241136,-10234.96904265,0.00029215,3]
[311155836,1704940241145,-314.30408612,0.00029218,2]
[311155837,1704940241155,-175.13076194,0.00029218,2]
[311155838,1704940241164,-8120.57371208,0.00029219,2]
[311155839,1704940241173,-641.28147893,0.00029219,2]
[311155840,1704940241182,-569.19143491,0.00029219,2]
[311155841,1704940241191,-281.7555391,0.0002922,2]
[311155842,1704940241200,-55799.10461077,0.00029221,2]
[311155843,1704940241209,-885.87311203,0.00029221,2]
[311155844,1704940241218,-20525.91962828,0.00029221,2]
[311155845,1704940241227,-500.0,0.00029315,2]
[311155846,1704940241236,-500.0,0.00029452,2]
[311155847,1704940241245,-620.00060826,0.00029469,2]
[311155848,1704940241254,-1500.0,0.000295,2]
[311155849,1704940241264,-500.0,0.00029589,2]
[311155850,1704940241273,-500.0,0.00029726,2]
[311155851,1704940241282,-242.90501079,0.0002976,4]
[311155852,1704940241291,-500.0,0.00029789,4]
[311155853,1704940241300,-370.97183162,0.00029789,4]
[311155854,1704940241309,-500.0,0.00029789,4]
[311155855,1704940241318,-500.0,0.00029789,4]
[311155856,1704940241327,-476.22449285,0.00029789,4]
[311155857,1704940241336,-337.9120652,0.00029789,4]
[311155858,1704940241345,-500.0,0.00029789,4]
[311155859,1704940241354,-426.2336021,0.00029789,4]
[311155860,1704940241363,-500.0,0.00029789,4]
[311155861,1704940241372,-500.0,0.00029789,4]
[311155862,1704940241381,-647.93032513,0.00029789,4]
[311155863,1704940241390,-268.6869823,0.00029789,4]
[311155864,1704940241399,-419.55359402,0.00029789,4]
[311155865,1704940241409,-500.0,0.00029789,4]
[311155866,1704940241418,-334786.13071337,0.0002979,7]
[311155867,1704940241427,-152.31502045,0.00029806,2]
[311155868,1704940241437,-500.0,0.00029863,2]
[311155869,1704940241447,-153.73462599,0.00029884,2]
[311155870,1704940241456,-151.2478173,0.00029953,2]
[311155871,1704940241465,-881.99515806,0.00029999,2]
[311155872,1704940241474,-999.90001,0.00029999,2]
[311155873,1704940241484,-215150.08436222,0.00029999,2]
[311155874,1704940241499,-89991.44547048,0.00029999,2]
[311155875,1704940241511,-2130.91660494,0.00029999,2]
[311155956,1704940246847,-268.28247969,0.00019587,2]
[311155958,1704941078741,500.0,0.0003,30]
[311156081,1704941438044,-245.88461104,0.00017274,2]
[311156082,1704941438054,-154.98450155,0.00017275,3]
[311156083,1704941438063,-154.98450155,0.00017276,2]
[311156084,1704941438072,-154.98450155,0.00017276,2]
[311156085,1704941438082,-319.52101955,0.00017292,2]
[311156086,1704941438094,-48.73953245,0.00017292,2]
[311156087,1704941438104,-374.59962623,0.00017523,2]
[311156088,1704941438113,-1295.07893996,0.00017623,2]
[311156089,1704941438126,-1593.15140259,0.00017623,2]
[311156090,1704941438136,-155.26941536,0.00017628,2]
[311156091,1704941438146,-246.10686283,0.00017897,2]
[311156092,1704941438155,-10503.19627673,0.00017898,2]
[311156093,1704941438166,-1500.0,0.00018,2]
[311156094,1704941438176,-1578.97802722,0.00019177,2]
[311156095,1704941438186,-162.785505,0.00019178,2]
[311156096,1704941438196,-162.49579,0.00019178,2]
[311156097,1704941438206,-159.312535,0.00019178,2]
[311156098,1704941438217,-867.63231497,0.000194,2]
[311156099,1704941438228,-15473.61,0.00019477,3]
[311156100,1704941438237,-12894.68,0.00019477,3]
[311156101,1704941438249,-10745.56,0.00019477,3]
[311156102,1704941438262,-155.09015253,0.00019486,2]
[311156103,1704941438272,-653.14128732,0.00019486,2]
[311156104,1704941438283,-276000.0,0.00019487,2]
[311156105,1704941438293,-1112.22182837,0.000195,2]
[311156106,1704941438303,-213.23538049,0.00019565,2]
[311156107,1704941438316,-272.00985266,0.00019576,2]
[311156108,1704941438332,-281.7555391,0.00019585,2]
[311156109,1704941438347,-8120.57371208,0.00019585,2]
[311156110,1704941438361,-641.28147893,0.00019585,2]
[311156111,1704941438374,-175.13076194,0.00019585,2]
[311156112,1704941438384,-155.35370352,0.00019585,2]
[311156113,1704941438398,-155.11758818,0.00019585,2]
[311156114,1704941438410,-787.82571813,0.00019585,2]
[311156115,1704941438424,-155.15886733,0.00019585,2]
[311156116,1704941438437,-659.81880984,0.00019585,2]
[311156117,1704941438450,-728.42753074,0.00019585,2]
[311156118,1704941438463,-174.76873055,0.00019585,2]
[311156119,1704941438475,-155.31481865,0.00019585,2]
[311156120,1704941438487,-155.68163135,0.00019585,2]
[311156121,1704941438499,-215.91663289,0.00019585,2]
[311156122,1704941438512,-155.12349042,0.00019585,2]
[311156123,1704941438525,-367.14708538,0.00019585,2]
[311156124,1704941438537,-155.16367244,0.00019585,2]
[311156125,1704941438551,-1294.48504841,0.00019585,2]
[311156126,1704941438563,-155.0151673,0.00019585,2]
[311156127,1704941438574,-213.66513779,0.00019585,2]
[311156128,1704941438586,-155.089591,0.00019585,2]
[311156129,1704941438600,-155.20238208,0.00019585,2]
[311156130,1704941438612,-155.07506532,0.00019585,2]
[311156131,1704941438625,-155.36425432,0.00019585,2]
[311156132,1704941438637,-155.31506109,0.00019585,2]
[311156133,1704941438650,-229.13208191,0.00019585,2]
[311156134,1704941438663,-158.6771109,0.00019585,2]
[311156135,1704941438677,-714.37566498,0.00019585,2]
[311156136,1704941438691,-4325.64770899,0.00019585,2]
[311156137,1704941438704,-243.35599312,0.00019585,2]
[311156138,1704941438719,-493.21389024,0.00019585,2]
[311156139,1704941438734,-234.70028966,0.00019585,2]
[311156140,1704941438746,-155.64625539,0.00019585,2]
[311156141,1704941438757,-266.7531457,0.00019585,2]
[311156142,1704941438767,-279.75965273,0.00019585,2]
[311156143,1704941438779,-261.21468539,0.00019585,2]
[311156144,1704941438792,-229.53069442,0.00019585,2]
[311156145,1704941438805,-155.68825038,0.00019585,2]
[311156146,1704941438817,-157.08250029,0.00019585,2]
[311156147,1704941438831,-737.33207211,0.00019585,2]
[311156148,1704941438844,-1119.5425572,0.00019585,2]
[311156149,1704941438856,-930.02599665,0.00019585,2]
[311156150,1704941438868,-180.19693683,0.00019585,2]
[311156151,1704941438881,-1791.03495825,0.00019585,5]
[311156152,1704941438893,-271.85427602,0.00019585,2]
[311156153,1704941438906,-167.58227819,0.00019585,2]
[311156154,1704941438919,-513.9410778,0.00019585,2]
[311156155,1704941438930,-175.61306139,0.00019585,2]
[311156156,1704941438941,-191.41815499,0.00019585,2]
[311156157,1704941438952,-1598.5088879,0.00019585,2]
[311156158,1704941438962,-364.0029808,0.00019585,2]
[311156159,1704941438975,-198.07098501,0.00019585,2]
[311156160,1704941438987,-540.54234042,0.00019585,2]
[311156161,1704941438999,-251.166416,0.00019585,2]
[311156162,1704941439012,-295.66227406,0.00019585,2]
[311156163,1704941439024,-185.74254481,0.00019585,2]
[311156164,1704941439035,-379.10751378,0.00019585,2]
[311156165,1704941439047,-277.50531123,0.00019585,2]
[311156166,1704941439059,-1755.60507505,0.00019585,2]
[311156167,1704941439072,-365.21040329,0.00019585,2]
[311156168,1704941439085,-213.19734832,0.00019585,2]
[311156169,1704941439097,-1244.31786917,0.00019585,2]
[311156170,1704941439108,-1992.12050163,0.00019585,2]
[311156171,1704941439120,-184.68732578,0.00019586,2]
[311156172,1704941439131,-523.37735557,0.00019586,2]
[311156173,1704941439142,-200.11869685,0.00019586,2]
[311156174,1704941439153,-157.18870053,0.00019587,2]
[311156175,1704941439164,-309.82086831,0.00019587,2]
[311156176,1704941439176,-155.0,0.00019587,2]
[311156177,1704941439190,-155.54890636,0.0002,2]
[311156178,1704941439202,-155.00310006,0.0002,2]
[311156179,1704941439212,-266.37190097,0.0002,2]
[311156180,1704941439223,-236.97375297,0.0002,2]
[311156181,1704941439235,-1195.27282006,0.0002,2]
[311156182,1704941439247,-677.0708176,0.0002,2]
[311156183,1704941439260,-270787.85398816,0.0002,2]
[311156184,1704941439272,-853.72221584,0.0002,2]
[311156185,1704941439282,-155.0,0.0002,2]
[311156186,1704941439293,-314.30408612,0.0002,2]
[311156187,1704941439304,-569.19143491,0.0002,2]
[311156188,1704941439315,-155.05361468,0.0002,2]
[311156189,1704941439326,-168.57048586,0.0002,2]
[311156190,1704941439338,-200.0,0.0002,2]
[311156191,1704941439349,-156.98066476,0.0002,2]
[311156192,1704941439361,-154.98450155,0.0002,2]
[311156193,1704941439371,-6528.127613,0.0002,2]
[311156194,1704941439383,-6528.127613,0.0002,2]
[311156195,1704941439394,-6528.127613,0.0002,2]
[311156196,1704941439407,-6528.127613,0.0002,2]
[311156197,1704941439418,-6528.127613,0.0002,2]
[311156198,1704941439430,-326.7917286,0.00021,2]
[311156199,1704941439440,-1000.0,0.000215,2]
[311156200,1704941439449,-166.666666,0.00021918,2]
[311156201,1704941439459,-337.0634007,0.00021918,2]
[311156202,1704941439599,-156.88951629,0.00022,2]
[311156203,1704941439612,-3935.17481612,0.00022,2]
[311156204,1704941439622,-156.43500893,0.00022,2]
[311156205,1704941439631,-4918.87947459,0.00022,2]
[311156206,1704941439641,-786.22948107,0.00022,2]
[311156207,1704941439650,-292.87321948,0.00022,4]
[311156208,1704941439659,-867.63231497,0.00022025,2]
[311156209,1704941439668,-166.666666,0.00022431,2]
[311156210,1704941439677,-166.666666,0.00022944,2]
[311156211,1704941439686,-2093.45221107,0.00023,2]
[311156212,1704941439694,-9923.17263833,0.00023,2]
[311156213,1704941439704,-166.666666,0.00023456,2]
[311156214,1704941439713,-166.666666,0.00023969,2]
[311156215,1704941439722,-497.12734932,0.0002398,5]
[311156216,1704941439731,-614.12133667,0.00024,2]
[311156217,1704941439740,-2293.60196635,0.00024,2]
[311156218,1704941439750,-155.24711582,0.00024,2]
[311156219,1704941439759,-166.666666,0.00024482,2]
[311156220,1704941439769,-867.63231497,0.0002465,2]
[311156221,1704941439779,-200.0,0.00024658,2]
[311156222,1704941439789,-280.0,0.00024658,2]
[311156223,1704941439798,-687.75702701,0.000247,2]
[311156224,1704941439807,-3000.0,0.00025,2]
[311156225,1704941439818,-4711.91259146,0.00025,2]
[311156226,1704941439827,-677.62834989,0.00025,2]
[311156227,1704941439836,-155.0,0.00025,2]
[311156228,1704941439846,-155.2351122,0.00025,2]
[311156229,1704941439855,-295.41689888,0.00025,2]
[311156230,1704941439864,-722.18762281,0.0002508,2]
[311156231,1704941439873,-200.0,0.00025479,2]
[311156232,1704941439882,-368.260552,0.00025938,2]
[311156233,1704941439893,-500.0,0.00025999,2]
[311156234,1704941439903,-620.18748071,0.00025999,2]
[311156235,1704941439912,-500.0,0.00025999,2]
[311156236,1704941439922,-500.0,0.00025999,2]
[311156237,1704941439930,-500.0,0.00025999,2]
[311156238,1704941439939,-500.0,0.00025999,2]
[311156239,1704941439948,-500.0,0.00025999,2]
[311156240,1704941439958,-500.0,0.00025999,2]
[311156241,1704941439966,-500.0,0.00025999,2]
[311156243,1704941439976,-297.81002865,0.00025999,2]
[311156245,1704941439986,-500.0,0.00025999,2]
[311156246,1704941439995,-280.64911559,0.00025999,2]
[311156247,1704941440006,-340.86031813,0.00025999,2]
[311156248,1704941440016,-500.0,0.00025999,2]
[311156249,1704941440025,-500.0,0.00025999,2]
[311156250,1704941440034,-500.0,0.00025999,2]
[311156251,1704941440045,-500.0,0.00025999,2]
[311156252,1704941440054,-500.0,0.00025999,2]
[311156253,1704941440064,-500.0,0.00025999,2]
[311156254,1704941440073,-500.0,0.00025999,2]
[311156255,1704941440083,-500.0,0.00025999,2]
[311156257,1704941440092,-500.0,0.00025999,2]
[311156258,1704941440102,-500.0,0.00025999,2]
[311156259,1704941440112,-500.0,0.00025999,2]
[311156260,1704941440121,-500.0,0.00025999,2]
[311156261,1704941440130,-500.0,0.00025999,2]
[311156262,1704941440141,-500.0,0.00025999,2]
[311156263,1704941440151,-361.55823494,0.00025999,2]
[311156264,1704941440161,-500.0,0.00025999,2]
[311156265,1704941440172,-500.0,0.00025999,2]
[311156266,1704941440184,-525.99300196,0.00026,2]
[311156267,1704941440193,-3645.64225585,0.00026,2]
[311156269,1704941440202,-50000.0,0.00026244,2]
[311156270,1704941440211,-625.10938114,0.00026334,2]
[311156272,1704941440220,-309.94478728,0.000265,2]
[311156273,1704941440230,-733.338016,0.00027,2]
[311156274,1704941440239,-867.63231497,0.00027275,2]
[311156275,1704941440249,-155.0,0.00027397,2]
[311156276,1704941440260,-500.0,0.00027397,2]
[311156277,1704941440268,-405.67767986,0.00027397,2]
[311156278,1704941440277,-500.0,0.00027534,2]
[311156279,1704941440286,-620.25546906,0.00027651,2]
[311156280,1704941440296,-500.0,0.00027671,2]
[311156281,1704941440306,-500.0,0.00027808,2]
[311156282,1704941440315,-7499.18739298,0.00027899,2]
[311156283,1704941440324,-500.0,0.00027945,2]
[311156284,1704941440334,-3103.68658614,0.00027997,2]
[311156285,1704941440344,-157.84708888,0.00028,2]
[311156286,1704941440353,-500.0,0.00028082,2]
[311156287,1704941440362,-500.0,0.00028219,2]
[311156288,1704941440371,-500.0,0.00028356,2]
[311156289,1704941440381,-500.0,0.00028493,2]
[311156290,1704941440390,-9100.04106185,0.000285,4]
[311156291,1704941440399,-500.0,0.0002863,2]
[311156292,1704941440409,-254.23001474,0.00028701,3]
[311156293,1704941440418,-155.0,0.00028767,2]
[311156294,1704941440426,-500.0,0.00028767,2]
[311156295,1704941440435,-500.0,0.00028904,2]
[311156296,1704941440445,-780.37469095,0.00028999,2]
[311156297,1704941440454,-872.41384367,0.00028999,2]
[311156298,1704941440462,-151.0,0.00028999,7]
[311156299,1704941440472,-155.00310006,0.00029,2]
[311156300,1704941440480,-3807.00559693,0.00029,2]
[311156301,1704941440490,-620.01277345,0.00029033,2]
[311156302,1704941440499,-500.0,0.00029041,2]
[311156303,1704941440508,-500.0,0.00029178,2]
[311156304,1704941440517,-236.69,0.0002922,2]
[311156305,1704941440526,-236.69,0.0002922,2]
[311156306,1704941440535,-236.69,0.0002922,2]
[311156307,1704941440544,-236.69,0.0002922,2]
[311156308,1704941440553,-236.69,0.0002922,2]
[311156309,1704941440562,-236.69,0.0002922,2]
[311156310,1704941440570,-236.69,0.0002922,2]
[311156311,1704941440579,-236.69,0.0002922,2]
[311156312,1704941440588,-236.69,0.0002922,2]
[311156313,1704941440597,-236.69,0.0002922,2]
[311156314,1704941440606,-50000.0,0.00029221,2]
[311156315,1704941440615,-82452.17411344,0.00029221,2]
[311156316,1704941440624,-5000.0,0.00029225,5]
[311156317,1704941440633,-19142.70898167,0.00029225,3]
[311156318,1704941440642,-256.57399536,0.0002924,3]
[311156319,1704941440651,-5000.0,0.00029246,5]
[311156320,1704941440660,-8607.77588849,0.00029254,3]
[311156321,1704941440669,-500.0,0.00029315,2]
[311156322,1704941440678,-500.0,0.00029452,2]
[311156323,1704941440687,-1500.0,0.000295,2]
[311156324,1704941440696,-152.31502045,0.00029531,2]
[311156325,1704941440705,-500.0,0.00029589,2]
[311156326,1704941440714,-153.0,0.00029589,2]
[311156327,1704941440723,-153.0,0.00029589,2]
[311156328,1704941440732,-151.0,0.00029591,4]
[311156329,1704941440741,-500.0,0.00029726,2]
[311156330,1704941440750,-242.90501079,0.0002976,4]
[311156331,1704941440759,-500.0,0.00029863,2]
[311156332,1704941440768,-191.81184539,0.00029899,2]
[311156333,1704941440777,-984.26322192,0.00029899,2]
[311156334,1704941440786,-38379.93475574,0.000299,2]
[311156335,1704941440794,-867.63231497,0.000299,2]
[311156336,1704941440803,-151.61911179,0.0002994,2]
[311156337,1704941440813,-151.2478173,0.00029953,2]
[311156338,1704941440822,-476.22449285,0.00029998,4]
[311156339,1704941440831,-370.97183162,0.00029998,4]
[311156340,1704941440840,-500.0,0.00029998,4]
[311156341,1704941440849,-500.0,0.00029998,4]
[311156342,1704941440858,-426.2336021,0.00029998,4]
[311156343,1704941440867,-268.6869823,0.00029998,4]
[311156344,1704941440876,-500.0,0.00029998,4]
[311156345,1704941440886,-337.9120652,0.00029998,4]
[311156346,1704941440896,-647.93032513,0.00029998,4]
[311156347,1704941440909,-419.55359402,0.00029998,4]
[311156348,1704941440919,-500.0,0.00029998,4]
[311156349,1704941440928,-500.0,0.00029998,4]
[311156350,1704941440938,-500.0,0.00029998,4]
[311156351,1704941440948,-500.0,0.00029998,4]
[311156352,1704941440959,-999.90001,0.00029999,2]
[311156353,1704941440971,-440081.24963,0.00029999,2]
[311156354,1704941440982,-160.0,0.00029999,10]
[311156355,1704941440991,-500.0,0.00029999,2]
[311156356,1704941441001,-11908.01426953,0.0003,5]
[311156357,1704941441012,-6975.26133049,0.0003,4]
[311156358,1704941441022,-236.54101658,0.0003,7]
[311156359,1704941441031,-639.80669723,0.0003,4]
[311156360,1704941441041,-2797.77049326,0.0003,4]
[311156361,1704941441052,-463.46661998,0.0003,4]
[311156362,1704941441062,-15040.88068289,0.0003,4]
[311156363,1704941441072,-686.8051383,0.0003,4]
[311156364,1704941441082,-6496.5646465,0.0003,2]
[311156365,1704941441092,-760.83645232,0.0003,2]
[311156366,1704941441102,-6183.76397391,0.0003,2]
[311156367,1704941441111,-2188.79308094,0.0003,2]
[311156368,1704941441122,-222906.78947165,0.0003,2]
[311156369,1704941441131,-19251.12813979,0.0003,3]
[311156370,1704941441142,-31386.13130963,0.0003,10]
[311156371,1704941441152,-18553.45565274,0.0003,2]
[311156372,1704941441162,-698.89862508,0.0003,2]
[311156373,1704941441172,-1200.0,0.0003,4]
[311156374,1704941441182,-155.18046676,0.0003,4]
[311156375,1704941441193,-287197.3918939,0.0003,2]
[311156376,1704941441210,-10202.84952288,0.0003,2]
[311156377,1704941441223,-152608.75858322,0.0003,2]
[311156378,1704941441235,-2151.02488296,0.0003,2]
[311156379,1704941441245,-5000.0,0.0003,2]
[311156380,1704941441257,-5000.0,0.0003,2]
[311156381,1704941441267,-5000.0,0.0003,2]
[311156382,1704941441278,-5000.0,0.0003,2]
[311156383,1704941441288,-2439.02,0.0003,2]
[311156384,1704941441298,-5000.0,0.0003,2]
[311156385,1704941441307,-5000.0,0.0003,2]
[311156386,1704941441316,-5000.0,0.0003,2]
[311156387,1704941441325,-5000.0,0.0003,2]
[311156388,1704941441334,-5000.0,0.0003,2]
[311156389,1704941441343,-899.90173962,0.0003,2]
[311156390,1704941441352,-155.0,0.0003,4]
[311156391,1704941441362,-150.0,0.0003,2]
[311156392,1704941441371,-2448.05627337,0.0003,2]
[311156393,1704941441381,-4452.61455502,0.0003,4]
[311156394,1704941441390,-734.76379061,0.0003,4]
[311156395,1704941441399,-409.88428547,0.0003,2]
[311156396,1704941441409,-601.21072826,0.0003,2]
[311156397,1704941441418,-300.0,0.0003,4]
[311156398,1704941441428,-1025.8328647,0.0003,2]
[311156399,1704941441439,-200.0,0.0003,2]
[311156400,1704941441448,-380984.54388709,0.0003,14]
[311156401,1704941441458,-155.0,0.0003,4]
[311156402,1704941441469,-2794.48662757,0.0003,4]
[311156403,1704941441478,-2000.0,0.0003,2]
[311156404,1704941441487,-1104.233674,0.0003,2]
[311156405,1704941441496,-1104.233674,0.0003,2]
[311156406,1704941441505,-1104.233674,0.0003,2]
[311156407,1704941441515,-1104.233674,0.0003,2]
[311156408,1704941441525,-275.0,0.0003,2]
[311156409,1704941441534,-5433.160826,0.0003,2]
[311156410,1704941441543,-5433.160826,0.0003,2]
[311156411,1704941441553,-5433.160826,0.0003,2]
[311156412,1704941441563,-5433.160826,0.0003,2]
[311156413,1704941441572,-169.4,0.0003,2]
[311156414,1704941441582,-169.4,0.0003,2]
[311156415,1704941441591,-169.4,0.0003,2]
[311156416,1704941441600,-169.4,0.0003,2]
[311156417,1704941441610,-2000.0,0.0003001,2]
[311156418,1704941441619,-2000.0,0.0003002,2]
[311156419,1704941441629,-2000.0,0.0003003,2]
[311156420,1704941441638,-2000.0,0.0003004,2]
[311156421,1704941441647,-2000.0,0.0003005,2]
[311156422,1704941441657,-2000.0,0.0003006,2]
[311156423,1704941441666,-2000.0,0.0003007,2]
[311156424,1704941441676,-2000.0,0.0003008,2]
[311156425,1704941441685,-2000.0,0.0003009,2]
[311156426,1704941441694,-2000.0,0.000301,2]
[311156427,1704941441703,-153.0,0.0003011,2]
[311156428,1704941441712,-153.0,0.0003011,2]
[311156429,1704941441722,-153.0,0.0003011,2]
[311156430,1704941441732,-153.0,0.0003011,2]
[311156431,1704941441740,-153.0,0.0003011,2]
[311156432,1704941441749,-153.0,0.0003011,2]
[311156433,1704941441759,-153.0,0.0003011,2]
[311156434,1704941441768,-153.0,0.0003011,2]
[311156435,1704941441777,-153.0,0.0003011,2]
[311156436,1704941441786,-153.0,0.0003011,2]
[311156437,1704941441796,-153.0,0.0003011,2]
[311156438,1704941441804,-153.0,0.0003011,2]
[311156439,1704941441814,-205.8499845,0.0003011,2]
[311156440,1704941441824,-153.0,0.0003011,2]
[311156441,1704941441833,-153.0,0.0003011,2]
[311156442,1704941441842,-153.0,0.0003011,2]
[311156443,1704941441851,-2000.0,0.0003011,2]
[311156444,1704941441861,-153.73462599,0.00030112,7]
[311156445,1704941441870,-2000.0,0.0003012,2]
[311156446,1704941441881,-197.37626976,0.0003013,2]
[311156447,1704941441890,-2000.0,0.0003013,2]
[311156448,1704941441899,-1104.233674,0.00030136,2]
[311156449,1704941441908,-1104.233674,0.00030136,2]
[311156450,1704941441918,-5433.160826,0.00030136,2]
[311156451,1704941441927,-5433.160826,0.00030136,2]
[311156452,1704941441937,-169.4,0.00030136,2]
[311156453,1704941441946,-169.4,0.00030136,2]
[311156454,1704941442042,-282.67247261,0.00030136,3]
[311156455,1704941442051,-154.98450155,0.00030136,2]
[311156456,1704941442062,-609.59021071,0.00030136,2]
[311156457,1704941442071,-500.0,0.00030136,2]
[311156458,1704941442081,-500.0,0.00030136,2]
[311156459,1704941442090,-500.0,0.00030136,2]
[311156460,1704941442100,-500.0,0.00030136,2]
[311156461,1704941442109,-500.0,0.00030136,2]
[311156462,1704941442119,-500.0,0.00030136,2]
[311156463,1704941442129,-500.0,0.00030136,2]
[311156464,1704941442138,-500.0,0.00030136,2]
[311156465,1704941442147,-500.0,0.00030136,2]
[311156466,1704941442156,-500.0,0.00030136,2]
[311156467,1704941442166,-500.0,0.00030136,2]
[311156468,1704941442175,-150.0,0.00030136,2]